bitfinex-derivatives/quotes_BNBF0:USTF0_20250521
["timestamp","ask_amount","ask_price","bid_price","bid_amount"]
[1747848907050,0.99253156,667.89,666.5,0.24483476]
[1747848907250,0.99253156,667.88,666.5,0.24483476]
[1747848907446,0.99253156,667.87,666.5,0.24483476]
[1747848907652,0.99253156,667.86,666.19,0.26080309]
[1747848907857,0.99253156,667.85,666.03,0.24483476]
[1747848908051,0.99253156,667.84,666.03,0.24483476]
[1747848908251,0.99253156,667.83,666.03,0.24483476]
[1747848908453,0.99253156,667.82,666.03,0.24483476]
[1747848908654,0.99253156,667.81,666.03,0.24483476]
[1747848908855,0.99253156,667.8,666.04,0.26092238]
[1747848909156,0.99253156,667.79,666.04,0.26092238]
[1747848909453,0.99253156,667.78,666.04,0.26092238]
[1747848909661,0.99253156,667.77,666.04,0.26092238]
[1747848909854,0.99253156,667.76,666.04,0.26092238]
[1747848910156,1.10744846,667.6,666.04,0.26092238]
[1747848910355,0.98814216,667.59,666.04,0.26092238]
[1747848910656,0.98814216,667.58,666.04,0.26092238]
[1747848910956,0.98814216,667.57,665.97,0.24483476]
[1747848911156,0.98814216,667.56,666.04,0.26098499]
[1747848911356,0.98814216,667.55,666.04,0.26098499]
[1747848911554,0.98814216,667.54,666.04,0.26098499]
[1747848911757,0.98814216,667.53,666.04,0.26098499]
[1747848911956,0.98814216,667.52,666.04,0.26098499]
[1747848912155,0.98814216,667.51,666.04,0.26098499]
[1747848912355,0.98814216,667.5,666.04,0.26098499]
[1747848912556,0.98814216,667.49,666.04,0.26098499]
[1747848912757,0.98814216,667.48,666.04,0.26098499]
[1747848912957,0.98814216,667.47,666.04,0.26098499]
[1747848913154,1.10744846,667.37,666.04,0.26098499]
[1747848913354,0.98814216,667.36,666.04,0.26098499]
[1747848913558,0.98814216,667.35,666.04,0.26098499]
[1747848913759,0.98711564,667.34,666.04,0.26098499]
[1747848913957,0.98711564,667.33,666.04,0.26098499]
[1747848914154,0.98711564,667.32,665.84,0.24483476]
[1747848914358,0.98711564,667.31,665.84,0.24483476]
[1747848914555,0.98711564,667.3,665.84,0.24483476]
[1747848914759,0.98711564,667.29,665.84,0.24483476]
[1747848914962,0.98711564,667.28,665.84,0.24483476]
[1747848915154,0.98711564,667.27,665.85,0.26106527]
[1747848915357,0.98711564,667.26,665.85,0.26106527]
[1747848915559,1.10744846,667.21,665.85,0.26106527]
[1747848915760,0.98711564,667.2,665.85,0.26106527]
[1747848916058,0.98711564,667.19,665.85,0.26106527]
[1747848916258,0.98711564,667.18,665.85,0.26106527]
[1747848916459,0.98711564,667.17,665.85,0.26106527]
[1747848916661,0.98711564,667.16,665.85,0.26106527]
[1747848916856,0.98711564,667.15,665.71,0.24483476]
[1747848917057,0.98711564,667.14,665.71,0.24483476]
[1747848917360,0.98711564,667.13,665.71,0.24483476]
[1747848917660,0.98711564,667.12,665.71,0.24483476]
[1747848917960,0.98711564,667.11,665.71,0.24483476]
[1747848918262,0.98711564,667.1,665.72,0.26105547]
[1747848918462,0.98711564,667.09,665.72,0.26105547]
[1747848918662,0.98711564,667.08,665.72,0.26105547]
[1747848918864,1.10744846,667.21,665.72,0.26105547]
[1747848919058,0.986475,667.2,665.8,0.24483476]
[1747848919261,0.986475,667.19,665.8,0.24483476]
[1747848919457,0.986475,667.18,665.8,0.24483476]
[1747848919657,0.986475,667.17,665.8,0.24483476]
[1747848919860,0.986475,667.16,665.8,0.24483476]
[1747848920061,1.10744846,667.3,665.8,0.24483476]
[1747848920261,0.98662648,667.29,665.8,0.24483476]
[1747848920463,0.98662648,667.28,665.8,0.24483476]
[1747848920661,0.98662648,667.27,665.8,0.24483476]
[1747848920864,0.98662648,667.26,665.8,0.24483476]
[1747848921059,0.98662648,667.25,665.8,0.24483476]
[1747848921263,0.98662648,667.24,665.8,0.24483476]
[1747848921563,0.98662648,667.23,665.8,0.24483476]
[1747848921759,0.98662648,667.22,665.8,0.24483476]
[1747848921966,0.98662648,667.21,665.9,0.24483476]
[1747848922166,0.98662648,667.2,665.9,0.24483476]
[1747848922365,0.98662648,667.19,665.9,0.24483476]
[1747848922666,0.98662648,667.18,665.9,0.24483476]
[1747848922965,0.98662648,667.17,665.9,0.24483476]
[1747848923166,0.98662648,667.16,665.9,0.24483476]
[1747848923466,0.98662648,667.15,665.9,0.24483476]
[1747848923666,0.98662648,667.14,665.9,0.24483476]
[1747848923969,1.10744846,667.36,665.84,0.24483476]
[1747848924163,0.98564539,667.35,665.84,0.24483476]
[1747848924361,0.98596694,667.34,665.84,0.24483476]
[1747848924564,0.98596694,667.33,665.84,0.24483476]
[1747848924762,0.98596694,667.32,665.84,0.24483476]
[1747848924969,0.98596694,667.31,665.84,0.24483476]
[1747848925167,0.98596694,667.3,665.84,0.24483476]
[1747848925367,0.98596694,667.29,665.84,0.24483476]
[1747848925569,0.98596694,667.28,665.84,0.24483476]
[1747848925867,1.10744846,667.2,665.72,0.26105547]
[1747848926065,0.98596694,667.19,665.72,0.26105547]
[1747848926265,0.98596694,667.18,665.72,0.26105547]
[1747848926468,0.98596694,667.17,665.72,0.26105547]
[1747848926671,0.98596694,667.16,665.72,0.26105547]
[1747848926968,0.98596694,667.15,665.72,0.26105547]
[1747848927170,0.98596694,667.14,665.72,0.26105547]
[1747848927370,0.98596694,667.13,665.39,0.24483476]
[1747848927671,0.98596694,667.12,665.39,0.24483476]
[1747848927867,0.98596694,667.11,665.39,0.24483476]
[1747848928166,0.98596694,667.1,665.39,0.24483476]
[1747848928366,0.98596694,667.09,665.4,0.26120537]
[1747848928568,1.10744846,666.83,665.4,0.26120537]
[1747848928872,0.98596694,666.82,665.11,0.35756176]
[1747848929068,1.93808507,666.81,665.11,0.35756176]
[1747848929269,0.98596694,666.8,665.11,0.35756176]
[1747848929470,0.98596694,666.79,665.12,0.26128382]
[1747848929673,0.98596694,666.78,665.12,0.26128382]
[1747848929969,0.98596694,666.77,665.12,0.26128382]
[1747848930172,0.98596694,666.76,665.12,0.26128382]
[1747848930373,0.98596694,666.75,665.12,0.26128382]
[1747848930672,0.98596694,666.74,665.12,0.26128382]
[1747848930874,0.98596694,666.73,665.12,0.26128382]
[1747848931076,0.98596694,666.72,665.12,0.26128382]
[1747848931271,0.98596694,666.71,665.12,0.26128382]
[1747848931470,0.95211813,666.74,665.12,0.26128382]
[1747848931667,0.98222744,666.73,665.12,0.26128382]
[1747848931867,0.98222744,666.72,665.12,0.26128382]
[1747848932073,1.93434557,666.71,665.12,0.26128382]
[1747848932266,0.98222744,666.7,665.12,0.26128382]
[1747848932470,0.95211813,666.71,665.12,0.26128382]
[1747848932670,0.98182286,666.7,665.12,0.26128382]
[1747848932971,0.95211813,666.71,665.12,0.26128382]
[1747848933567,1.10744846,666.93,665.12,0.26128382]
[1747848933768,0.98181715,666.92,665.12,0.26128382]
[1747848933965,0.98182947,666.91,665.12,0.26128382]
[1747848934168,0.98182947,666.9,665.12,0.26128382]
[1747848934372,0.98182947,666.89,665.12,0.26128382]
[1747848934564,0.98182947,666.88,665.12,0.26128382]
[1747848934768,0.98182947,666.87,665.12,0.26128382]
[1747848934970,0.98197232,666.86,665.08,0.35756176]
[1747848935272,0.98197232,666.85,665.12,0.26117303]
[1747848935472,0.95145071,666.87,665.12,0.26117303]
[1747848936774,1.10744846,667.26,665.29,0.35756176]
[1747848936974,0.982034,667.25,665.29,0.35756176]
[1747848937274,0.982034,667.24,665.29,0.35756176]
[1747848937473,0.982034,667.23,665.29,0.35756176]
[1747848937674,0.982034,667.22,665.29,0.35756176]
[1747848937873,0.982034,667.21,665.29,0.35756176]
[1747848938075,0.982034,667.2,665.29,0.35756176]
[1747848938270,0.982034,667.19,665.29,0.35756176]
[1747848938472,0.982034,667.18,665.29,0.35756176]
[1747848938779,0.982034,667.17,665.29,0.35756176]
[1747848939075,0.95202914,667.18,665.29,0.35756176]
[1747848940081,1.10744846,667.55,665.46,0.35756176]
[1747848940276,0.98342673,667.54,665.46,0.35756176]
[1747848940474,0.98342673,667.53,665.46,0.35756176]
[1747848940675,0.98342673,667.52,665.46,0.35756176]
[1747848940875,0.98342673,667.51,665.46,0.35756176]
[1747848941171,0.98342673,667.5,665.46,0.35756176]
[1747848941376,1.93621832,667.49,665.46,0.35756176]
[1747848941581,0.98342673,667.48,665.46,0.35756176]
[1747848941775,0.98342673,667.47,665.46,0.35756176]
[1747848941973,0.98342673,667.46,665.46,0.35756176]
[1747848942180,0.98342673,667.45,665.46,0.35756176]
[1747848942378,0.98342673,667.44,665.46,0.35756176]
[1747848942579,0.98342673,667.43,665.4,0.35756176]
[1747848942878,0.98342673,667.42,665.4,0.35756176]
[1747848943075,0.98342673,667.41,665.4,0.35756176]
[1747848943276,1.93621832,667.4,665.4,0.35756176]
[1747848943478,0.98342673,667.39,665.4,0.35756176]
[1747848943672,0.98342673,667.38,665.4,0.35756176]
[1747848943877,0.98342673,667.37,665.4,0.35756176]
[1747848944074,0.98342673,667.36,665.4,0.35756176]
[1747848944274,0.98342673,667.35,665.4,0.35756176]
[1747848944474,0.98342673,667.34,665.4,0.35756176]
[1747848944777,0.98342673,667.33,665.4,0.35756176]
[1747848944979,0.98342673,667.32,665.6,0.35756176]
[1747848945180,0.98342673,667.31,665.6,0.35756176]
[1747848945376,0.98342673,667.3,665.6,0.35756176]
[1747848945577,0.98191967,667.29,665.6,0.35756176]
[1747848945778,0.98191967,667.28,665.6,0.35756176]
[1747848946085,1.93471126,667.27,665.6,0.35756176]
[1747848946287,0.98191967,667.26,665.6,0.35756176]
[1747848946485,0.98191967,667.25,665.6,0.35756176]
[1747848946687,0.98191967,667.24,665.6,0.35756176]
[1747848946881,0.98191967,667.23,665.6,0.35756176]
[1747848947082,0.98191967,667.22,665.6,0.35756176]
[1747848947280,0.95279159,667.27,665.6,0.35756176]
[1747848947481,0.98102052,667.26,665.6,0.35756176]
[1747848947685,0.98086685,667.25,665.32,0.26102708]
[1747848947883,0.98086685,667.24,665.32,0.26102708]
[1747848948084,0.98086685,667.23,665.32,0.26102708]
[1747848948285,0.98086685,667.22,665.32,0.26102708]
[1747848948481,0.98086685,667.21,665.32,0.26102708]
[1747848948681,0.98086685,667.2,665.32,0.26102708]
[1747848948885,1.93365844,667.19,665.32,0.26102708]
[1747848949086,0.98086685,667.18,665.32,0.26102708]
[1747848949390,0.98086685,667.17,665.32,0.26102708]
[1747848949587,0.98086685,667.16,665.32,0.26102708]
[1747848949788,0.98086685,667.15,665.32,0.26102708]
[1747848949989,0.98086685,667.14,665.32,0.26102708]
[1747848950189,0.98086685,667.13,665.32,0.26102708]
[1747848950392,0.98086685,667.12,665.32,0.26102708]
[1747848950590,1.10744846,666.85,665.32,0.26102708]
[1747848950790,0.98086685,666.84,665.32,0.26102708]
[1747848950990,0.98086685,666.83,665.32,0.26102708]
[1747848951190,0.98086685,666.82,665.32,0.26102708]
[1747848951489,1.10744846,666.85,665.32,0.26102708]
[1747848951692,0.95279159,666.81,665.32,0.26102708]
[1747848952892,0.95279159,666.81,665.03,0.35756176]
[1747848953387,1.10744846,667.21,665.29,0.35756176]
[1747848953586,0.98315329,667.2,665.29,0.35756176]
[1747848953787,0.98315329,667.19,665.29,0.35756176]
[1747848953986,0.98315329,667.18,665.29,0.35756176]
[1747848954186,0.98315329,667.17,665.3,0.26113971]
[1747848954388,1.10744846,667.21,665.3,0.26113971]
[1747848954590,0.9830346,667.2,665.3,0.26113971]
[1747848954889,0.9830346,667.19,665.3,0.26113971]
[1747848955092,0.9830346,667.18,665.3,0.26113971]
[1747848955389,0.98319775,667.17,665.32,0.35756176]
[1747848955594,0.98319775,667.16,665.32,0.35756176]
[1747848955784,0.95485877,667.18,665.32,0.35756176]
[1747848955785,0.98319775,667.15,665.32,0.35756176]
[1747848955987,0.98319775,667.14,665.32,0.35756176]
[1747848956191,0.95485877,667.18,665.32,0.35756176]
[1747848956391,1.93919667,667.17,665.32,0.35756176]
[1747848956592,0.9843379,667.16,665.32,0.35756176]
[1747848957389,0.9843379,667.16,665.5,0.35756176]
[1747848957596,0.95485877,667.15,665.5,0.35756176]
[1747848957798,0.9843379,667.14,665.5,0.35756176]
[1747848957994,0.9843379,667.13,665.5,0.35756176]
[1747848958194,0.9848533,667.12,665.5,0.35756176]
[1747848958393,1.93971207,667.11,665.5,0.35756176]
[1747848958594,0.9848533,667.1,665.5,0.35756176]
[1747848958795,0.9848533,667.09,665.5,0.35756176]
[1747848959092,0.9848533,667.08,665.5,0.35756176]
[1747848959298,0.9848533,667.07,665.5,0.35756176]
[1747848959496,0.9848533,667.06,665.5,0.35756176]
[1747848959695,0.9848533,667.05,665.5,0.35756176]
[1747848959894,1.10744846,666.96,665.35,0.35756176]
[1747848960091,0.9848533,666.95,665.35,0.35756176]
[1747848960293,0.9848533,666.94,665.35,0.35756176]
[1747848960496,0.9848533,666.93,665.35,0.35756176]
[1747848960696,0.9848533,666.92,665.35,0.35756176]
[1747848960890,0.9848533,666.91,665.35,0.35756176]
[1747848961095,0.9848533,666.9,665.35,0.35756176]
[1747848961295,0.98545621,666.89,665.35,0.35756176]
[1747848961491,0.98545621,666.88,665.35,0.35756176]
[1747848961694,0.98545621,666.87,665.35,0.35756176]
[1747848961897,0.98545621,666.86,665.35,0.35756176]
[1747848962093,0.98545621,666.85,665.35,0.35756176]
[1747848962295,0.98545621,666.84,665.35,0.35756176]
[1747848962492,0.98545621,666.83,665.35,0.35756176]
[1747848962696,0.98545621,666.82,665.35,0.35756176]
[1747848962896,0.98521954,666.81,665.35,0.35756176]
[1747848963201,1.10744846,666.73,665.31,0.26112012]
[1747848963397,0.98575003,666.72,665.31,0.26112012]
[1747848963594,0.98575003,666.71,665.31,0.26112012]
[1747848963792,0.98575003,666.7,665.31,0.26112012]
[1747848963995,0.98575003,666.69,665.31,0.26112012]
[1747848964197,1.9406088,666.68,665.31,0.26112012]
[1747848964392,0.98575003,666.67,665.31,0.26112012]
[1747848964595,0.98575003,666.66,665.31,0.26112012]
[1747848964797,0.98575003,666.65,665.31,0.26112012]
[1747848964997,0.98575003,666.64,665.31,0.26112012]
[1747848965194,0.98575003,666.63,665.31,0.26112012]
[1747848965492,0.98575003,666.62,665.31,0.26112012]
[1747848965699,0.98575003,666.61,665.31,0.26112012]
[1747848965899,0.98575003,666.6,665.31,0.26112012]
[1747848966101,0.98575003,666.59,665.31,0.26112012]
[1747848966297,0.98575003,666.58,665.31,0.26112012]
[1747848966497,0.98575003,666.57,665.31,0.26112012]
[1747848966694,0.98575003,666.56,665.31,0.26112012]
[1747848966898,1.9406088,666.55,665.31,0.26112012]
[1747848967097,0.95485877,666.55,665.31,0.26112012]
[1747848967500,0.987937,666.54,665.31,0.26112012]
[1747848967701,0.987937,666.53,665.31,0.26112012]
[1747848967903,0.987937,666.52,665.02,0.35756176]
[1747848968200,0.98818254,666.51,665.02,0.35756176]
[1747848968396,0.95485877,666.55,665.02,0.35756176]
[1747848968602,0.98829751,666.54,665.02,0.35756176]
[1747848968802,0.95485877,666.55,665.02,0.35756176]
[1747848969004,0.95485877,666.5,665.29,0.35756176]
[1747848969904,0.98814687,666.49,665.29,0.35756176]
[1747848970204,0.98794092,666.48,665.29,0.35756176]
[1747848970403,0.98794092,666.47,665.29,0.35756176]
[1747848970705,1.94279969,666.46,665.29,0.35756176]
[1747848970903,0.98794092,666.45,665.29,0.35756176]
[1747848971103,0.98794092,666.44,665.29,0.35756176]
[1747848971303,0.98794092,666.43,665.29,0.35756176]
[1747848971499,0.98794092,666.42,665.29,0.35756176]
[1747848971798,0.98794092,666.41,665.29,0.35756176]
[1747848972004,0.98794092,666.4,665.29,0.35756176]
[1747848972206,0.98794092,666.39,665.29,0.35756176]
[1747848972401,1.10744846,666.33,664.51,0.35756176]
[1747848972605,0.98794092,666.32,664.51,0.35756176]
[1747848972801,0.98794092,666.31,664.51,0.35756176]
[1747848973001,0.98794092,666.3,664.51,0.35756176]
[1747848973204,0.98794092,666.29,664.51,0.35756176]
[1747848973403,1.94279969,666.28,664.52,0.26147425]
[1747848973605,0.98794092,666.27,664.52,0.26147425]
[1747848973806,0.98794092,666.26,664.52,0.26147425]
[1747848974002,0.98794092,666.25,664.52,0.26147425]
[1747848974205,0.98794092,666.24,664.52,0.26147425]
[1747848974409,0.98794092,666.23,664.52,0.26147425]
[1747848974706,0.98794092,666.22,664.52,0.26147425]
[1747848974903,1.10744846,666.19,664.52,0.26147425]
[1747848975103,0.98794092,666.18,664.52,0.26147425]
[1747848975308,0.98794092,666.17,664.52,0.26147425]
[1747848975502,0.98794092,666.16,664.52,0.26147425]
[1747848975703,1.94279969,666.15,664.52,0.26147425]
[1747848976008,0.98794092,666.14,664.52,0.26147425]
[1747848976205,0.98794092,666.13,664.52,0.26147425]
[1747848976406,0.98794092,666.12,664.52,0.26147425]
[1747848976709,0.95485877,666.15,664.52,0.26147425]
[1747848977008,0.98109468,666.14,664.22,0.35756176]
[1747848977209,0.98109468,666.13,664.23,0.35756176]
[1747848977411,0.98109468,666.12,664.23,0.35756176]
[1747848977607,0.97999657,666.11,664.23,0.35756176]
[1747848977803,0.98002875,666.1,664.23,0.35756176]
[1747848978008,0.95485877,666.18,664.23,0.35756176]
[1747848978209,0.95485877,666.09,664.24,0.26155679]
[1747848979706,1.10744846,666.32,664.33,0.35756176]
[1747848979912,0.9795041,666.31,664.33,0.35756176]
[1747848980105,0.9795041,666.3,664.33,0.35756176]
[1747848980307,0.9795041,666.29,664.33,0.35756176]
[1747848980509,0.9795041,666.28,664.33,0.35756176]
[1747848980710,0.9795305,666.27,664.33,0.35756176]
[1747848981008,1.93438927,666.26,664.33,0.35756176]
[1747848981206,0.9795305,666.25,664.33,0.35756176]
[1747848982411,0.9795305,666.25,664.31,0.35756176]
[1747848982605,0.95485877,666.24,664.31,0.35756176]
[1747848982811,0.9795305,666.23,664.31,0.35756176]
[1747848983511,0.95485877,666.22,664.31,0.35756176]
[1747848983711,0.9795305,666.21,664.31,0.35756176]
[1747848984113,0.95485877,666.22,664.31,0.35756176]
[1747848984313,0.97972782,666.21,664.31,0.35756176]
[1747848984814,1.10744846,666.41,664.27,0.26154303]
[1747848985016,0.9797354,666.4,664.27,0.26154303]
[1747848985210,0.9797354,666.39,664.27,0.26154303]
[1747848985411,0.9797354,666.38,664.27,0.26154303]
[1747848985714,0.9797354,666.37,664.27,0.26154303]
[1747848985912,0.97986365,666.36,664.24,0.35756176]
[1747848986114,1.93472242,666.35,664.24,0.35756176]
[1747848986309,0.97986365,666.34,664.24,0.35756176]
[1747848986514,0.97986365,666.33,664.24,0.35756176]
[1747848986714,0.97986365,666.32,664.24,0.35756176]
[1747848987021,0.95485877,666.35,664.25,0.2615106]
[1747848987022,0.97986365,666.31,664.25,0.2615106]
[1747848987325,0.97986365,666.3,664.4,0.35756176]
[1747848987610,1.39726013,666.29,664.4,0.35756176]
[1747848987815,0.97986365,666.28,664.4,0.35756176]
[1747848988015,0.97986365,666.27,664.4,0.35756176]
[1747848988316,0.97986365,666.26,664.4,0.35756176]
[1747848988517,0.97986365,666.25,664.4,0.35756176]
[1747848988815,1.93472242,666.24,664.4,0.35756176]
[1747848989018,0.97986365,666.23,664.4,0.35756176]
[1747848989212,0.97986365,666.22,664.4,0.35756176]
[1747848989415,0.97986365,666.21,664.4,0.35756176]
[1747848989618,0.97986365,666.2,664.4,0.35756176]
[1747848989820,0.97986365,666.19,664.4,0.35756176]
[1747848990020,0.97986365,666.18,663.97,0.35756176]
[1747848990323,0.97986365,666.17,663.97,0.35756176]
[1747848990518,0.97986365,666.16,663.97,0.35756176]
[1747848990817,0.97986365,666.15,663.97,0.35756176]
[1747848991019,1.93472242,666.14,663.97,0.35756176]
[1747848991214,0.97846499,666.13,663.97,0.35756176]
[1747848991514,0.97846499,666.12,663.97,0.35756176]
[1747848991824,0.97846499,666.11,663.97,0.35756176]
[1747848992119,0.97846499,666.1,663.97,0.35756176]
[1747848992419,1.93332376,666.09,663.88,0.35756176]
[1747848992619,0.97846499,666.08,663.88,0.35756176]
[1747848992815,0.97846499,666.07,663.88,0.35756176]
[1747848993021,0.97794533,666.06,663.88,0.35756176]
[1747848993220,1.9328041,666.05,663.88,0.35756176]
[1747848993416,0.95485877,666.05,663.89,0.26159611]
[1747848995219,0.95485877,666.26,663.89,0.26159611]
[1747848995421,0.97807764,666.25,663.96,0.35756176]
[1747848995620,0.95485877,666.26,663.96,0.35756176]
[1747848996514,0.9783027,666.25,663.96,0.35756176]
[1747848996714,0.9783027,666.24,663.96,0.35756176]
[1747848996920,0.97835168,666.23,663.96,0.35756176]
[1747848997116,0.95485877,666.51,663.96,0.35756176]
[1747848997321,0.97838544,666.5,663.96,0.35756176]
[1747848997521,0.97838544,666.49,663.96,0.35756176]
[1747848997724,0.97838544,666.48,663.96,0.35756176]
[1747848997924,0.97838544,666.47,663.96,0.35756176]
[1747848998123,2.0858339,666.46,664.14,0.35756176]
[1747848998324,0.97838544,666.45,664.14,0.35756176]
[1747848999423,0.95485877,666.44,664.14,0.35756176]
[1747848999723,0.97838544,666.43,664.14,0.35756176]
[1747849000123,0.98027994,666.42,664.14,0.35756176]
[1747849000323,0.95485877,666.44,664.14,0.35756176]
[1747849000525,0.98045517,666.43,664.14,0.35756176]
[1747849000721,0.95485877,666.44,664.14,0.35756176]
[1747849000918,2.17944001,666.79,663.92,0.26144184]
[1747849000919,0.95485877,666.41,664.37,0.35756176]
[1747849002019,0.95485877,666.64,664.37,0.35756176]
[1747849002223,0.98185839,666.63,664.37,0.35756176]
[1747849002423,0.98185839,666.62,664.37,0.35756176]
[1747849002723,0.98185839,666.61,664.37,0.35756176]
[1747849003024,0.98185839,666.6,664.37,0.35756176]
[1747849003225,0.98185839,666.59,664.37,0.35756176]
[1747849003422,0.98185839,666.58,664.37,0.35756176]
[1747849003621,0.95485877,666.64,664.37,0.35756176]
[1747849003824,0.95485877,666.59,664.56,0.35756176]
[1747849004725,1.10744846,666.68,664.56,0.35756176]
[1747849006226,0.96722689,666.67,664.95,0.35756176]
[1747849006423,0.98498633,666.66,664.95,0.35756176]
[1747849006623,0.96722689,666.67,664.95,0.35756176]
[1747849007024,0.96722689,666.66,664.95,0.35756176]
[1747849008229,0.96722689,666.88,664.88,0.35756176]
[1747849008529,0.98546463,666.87,664.88,0.35756176]
[1747849008726,0.98546463,666.86,664.88,0.35756176]
[1747849008927,0.98546463,666.85,664.88,0.35756176]
[1747849009125,1.95269152,666.84,664.88,0.35756176]
[1747849009326,0.98546463,666.83,664.88,0.35756176]
[1747849009528,0.98546463,666.82,664.88,0.35756176]
[1747849009721,0.98546463,666.81,664.88,0.35756176]
[1747849009924,0.98546463,666.8,664.88,0.35756176]
[1747849010223,0.98546463,666.79,664.88,0.35756176]
[1747849010425,0.98546463,666.78,664.88,0.35756176]
[1747849010722,0.98546463,666.77,664.99,0.35756176]
[1747849010924,0.98546463,666.76,664.99,0.35756176]
[1747849011125,0.98546463,666.75,664.99,0.35756176]
[1747849011320,0.98546463,666.74,664.99,0.35756176]
[1747849011520,0.98546463,666.73,664.99,0.35756176]
[1747849011722,0.98546463,666.72,664.99,0.35756176]
[1747849011923,1.95269152,666.71,664.99,0.35756176]
[1747849012125,0.98546463,666.7,664.99,0.35756176]
[1747849013020,0.96722689,666.69,664.83,0.35756176]
[1747849013222,0.98546463,666.68,664.83,0.35756176]
[1747849014629,0.96722689,666.67,664.83,0.35756176]
[1747849014829,0.98546463,666.66,664.83,0.35756176]
[1747849015428,0.98546463,666.65,664.83,0.35756176]
[1747849015633,0.98767285,666.64,664.83,0.35756176]
[1747849015829,0.96722689,666.67,664.83,0.35756176]
[1747849016229,0.96722689,666.88,665.09,0.35756176]
[1747849016433,0.98868788,666.87,665.09,0.35756176]
[1747849016630,0.98868788,666.86,665.09,0.35756176]
[1747849016833,0.98868788,666.85,665.09,0.35756176]
[1747849017037,0.98868788,666.84,665.09,0.35756176]
[1747849017232,1.95591477,666.83,665.09,0.35756176]
[1747849017526,0.98868788,666.82,665.09,0.35756176]
[1747849017731,0.96722689,666.83,665.09,0.35756176]
[1747849017732,0.98868788,666.81,665.09,0.35756176]
[1747849017929,0.98868788,666.8,665.09,0.35756176]
[1747849018233,0.96722689,666.83,665.09,0.35756176]
[1747849018234,0.98868788,666.79,665.09,0.35756176]
[1747849018433,0.98868788,666.78,665.09,0.35756176]
[1747849018633,0.98868788,666.77,665.09,0.35756176]
[1747849018834,0.98868788,666.76,665.26,0.35756176]
[1747849019034,0.98868788,666.75,665.26,0.35756176]
[1747849019340,0.98868788,666.74,665.26,0.35756176]
[1747849019634,0.98868788,666.73,665.26,0.35756176]
[1747849019833,0.98822073,666.72,665.26,0.35756176]
[1747849020134,1.95544762,666.71,665.26,0.35756176]
[1747849020335,0.96722689,666.71,665.26,0.35756176]
[1747849020837,0.98722224,666.7,665.26,0.35756176]
[1747849021136,0.98698529,666.69,665.26,0.35756176]
[1747849021335,0.98698529,666.68,665.26,0.35756176]
[1747849021533,0.98698529,666.67,665.26,0.35756176]
[1747849021736,0.98698529,666.66,665.26,0.35756176]
[1747849021931,0.98698529,666.65,665.19,0.35756176]
[1747849022132,0.98698529,666.64,665.19,0.35756176]
[1747849022336,0.98698529,666.63,665.19,0.35756176]
[1747849022536,0.98698529,666.62,665.19,0.35756176]
[1747849022738,0.96722689,666.67,665.19,0.35756176]
[1747849023141,0.96722689,666.8,665.19,0.35756176]
[1747849025449,1.10744846,667.21,665.41,0.35756176]
[1747849025647,0.98593437,667.2,665.41,0.35756176]
[1747849025847,0.98593437,667.19,665.41,0.35756176]
[1747849026147,0.98593437,667.18,665.41,0.35756176]
[1747849026347,0.98593437,667.17,665.41,0.35756176]
[1747849026548,0.98593437,667.16,665.41,0.35756176]
[1747849026746,0.98593437,667.15,665.41,0.35756176]
[1747849026946,0.98593437,667.14,665.41,0.35756176]
[1747849027247,0.98593437,667.13,665.41,0.35756176]
[1747849027447,0.98593437,667.12,665.41,0.35756176]
[1747849027647,0.98593437,667.11,665.41,0.35756176]
[1747849027944,0.98593437,667.1,665.41,0.35756176]
[1747849028143,0.98593437,667.09,665.41,0.35756176]
[1747849028348,0.98593437,667.08,665.41,0.35756176]
[1747849028548,0.98593437,667.07,665.41,0.35756176]
[1747849028748,0.98593437,667.06,665.41,0.35756176]
[1747849028950,0.98593437,667.05,665.33,0.35756176]
[1747849029249,0.98593437,667.04,665.33,0.35756176]
[1747849029448,0.98593437,667.03,665.33,0.35756176]
[1747849029644,0.98593437,667.02,665.33,0.35756176]
[1747849029845,0.98593437,667.01,665.33,0.35756176]
[1747849030044,0.98593437,667.0,665.33,0.35756176]
[1747849030246,1.95381965,666.99,665.33,0.35756176]
[1747849030546,0.98593437,666.98,665.33,0.35756176]
[1747849030746,0.98593437,666.97,665.33,0.35756176]
[1747849030948,0.98593437,666.96,665.33,0.35756176]
[1747849031145,0.98593437,666.95,665.33,0.35756176]
[1747849031346,0.98593437,666.94,665.33,0.35756176]
[1747849031546,0.98056049,666.93,665.33,0.35756176]
[1747849031747,0.98056049,666.92,665.33,0.35756176]
[1747849031947,0.98056049,666.91,665.33,0.35756176]
[1747849032247,0.96788528,666.99,665.33,0.35756176]
[1747849032248,0.98056049,666.9,665.33,0.35756176]
[1747849032444,1.10744846,665.45,665.33,0.35756176]
[1747849032649,0.98056049,665.44,664.54,0.46950281]
[1747849032945,0.98056049,665.43,664.54,0.46950281]
[1747849033149,1.10744846,665.45,664.54,0.46950281]
[1747849033351,0.97845091,665.44,664.54,0.46950281]
[1747849033551,1.10744846,665.45,664.54,0.46950281]
[1747849033851,1.9464307,665.44,664.54,0.46950281]
[1747849034052,0.97854542,665.43,664.54,0.46950281]
[1747849034352,0.97854542,665.43,663.14,0.35756176]
[1747849035052,0.96788528,665.42,663.18,0.35756176]
[1747849035252,0.97854542,665.41,663.18,0.35756176]